fUST/lending_fUST_20241130
["ID","MTS","AMOUNT","RATE_DAILY","PERIOD"]
[343829107,1732971046000,-503.81636849,0.00024657,3]
[343829108,1732971046010,-500.0,0.00024657,3]
[343829109,1732971046020,-500.0,0.00024657,3]
[343829110,1732971046030,-432.3592236,0.00024657,3]
[343829111,1732971046042,-500.0,0.00024657,3]
[343829112,1732971046051,-500.0,0.00024657,3]
[343829113,1732971046061,-500.0,0.00024657,3]
[343829115,1732971046071,-218.53621841,0.00024657,3]
[343829117,1732971046081,-500.0,0.00024657,3]
[343829119,1732971046092,-500.0,0.00024657,3]
[343829121,1732971046102,-500.0,0.00024657,3]
[343829123,1732971046111,-500.0,0.00024657,3]
[343829134,1732971046215,-526.50838463,0.00024657,3]
[343829136,1732971046225,-503.18974741,0.00024657,3]
[343829138,1732971046235,-775.18,0.00024657,3]
[343829140,1732971046245,-500.0,0.00024657,3]
[343829142,1732971046254,-500.0,0.00024657,3]
[343829144,1732971046264,-500.0,0.00024657,3]
[343829145,1732971046273,-500.0,0.00024657,3]
[343829148,1732971046283,-1479.53,0.00024657,3]
[343829150,1732971046297,-500.0,0.00024657,3]
[343829151,1732971046306,-3373.93,0.00024657,3]
[343829153,1732971046316,-500.0,0.00024657,3]
[343829155,1732971046326,-500.0,0.00024657,3]
[343829157,1732971046335,-870.24,0.00024657,3]
[343829159,1732971046345,-500.0,0.00024657,3]
[343829161,1732971046354,-0.04407843,0.00024657,3]
[343829163,1732971046367,-499.95592157,0.00024657,3]
[343829166,1732971046377,-491.8172539,0.00024657,3]
[343829168,1732971046387,-501.74238105,0.00024657,3]
[343829170,1732971046396,-267.17660128,0.00024657,3]
[343829173,1732971046407,-234.45308874,0.00024657,3]
[343829175,1732971046416,-200.0,0.00024658,15]
[343829177,1732971046426,-199.558976,0.00024658,2]
[343829179,1732971046436,-503.23047445,0.00024673,2]
[343829181,1732971046445,-500.0,0.00024673,2]
[343829183,1732971046455,-500.0,0.00024673,2]
[343829185,1732971046464,-365.33234357,0.00024673,2]
[343829186,1732971046473,-281.98935605,0.00024673,2]
[343829204,1732971046639,-216.28782403,0.00024673,2]
[343829206,1732971046649,-313.33911021,0.00024673,2]
[343829208,1732971046660,-88.27735625,0.00024729,2]
[343830825,1732971065097,167.146857,0.00013973,2]
[343838851,1732971263731,9541.49,0.00026,60]
[343838855,1732971859038,167.386011,0.00013973,2]
[343838861,1732972170172,-300.0,0.00016111,2]
[343838862,1732972170194,-300.0,0.00016111,2]
[343838863,1732972170214,-500.0,0.00016112,2]
[343838864,1732972170235,-500.0,0.00016112,2]
[343838865,1732972170256,-0.62392062,0.00016112,2]
[343838903,1732972232639,-499.37607938,0.00016112,2]
[343838905,1732972232649,-500.0,0.00016112,2]
[343838907,1732972232660,-447.25227804,0.00016112,2]
[343838909,1732972232669,-500.0,0.00016143,2]
[343838911,1732972232683,-500.0,0.00016143,2]
[343838913,1732972232692,-500.0,0.0001696,2]
[343838915,1732972232703,-300.0,0.00017719,2]
[343838917,1732972232712,-300.0,0.00017719,2]
[343838919,1732972232721,-6899.73906407,0.0001772,5]
[343838921,1732972232738,-13517.87654258,0.0001772,5]
[343838922,1732972232747,-500.0,0.00017852,2]
[343838923,1732972232757,-8951.6514041,0.00018023,2]
[343838924,1732972232767,-250.0,0.00018382,2]
[343838925,1732972232777,-500.0,0.00018792,2]
[343838926,1732972232786,-160.114495,0.00019178,2]
[343838927,1732972232796,-420.0,0.00019339,2]
[343838928,1732972232805,-420.0,0.00019491,2]
[343838929,1732972232814,-500.0,0.00019781,2]
[343838930,1732972232823,-1169.27083333,0.0002,2]
[343838931,1732972232833,-500.0,0.00020822,2]
[343838933,1732972232844,-185.362343,0.00020867,2]
[343838934,1732972232853,-587.0,0.00021107,2]
[343838935,1732972232862,-587.0,0.0002144,2]
[343838937,1732972232871,-500.0,0.00021918,2]
[343838939,1732972232881,-1389.74801794,0.00022873,2]
[343838941,1732972232890,-330.75645203,0.00022876,2]
[343838943,1732972232900,-24900.0,0.00022877,2]
[343838944,1732972232909,-500.0,0.000229,2]
[343838945,1732972232919,-823.0,0.00023037,2]
[343838947,1732972232929,-500.0,0.00023072,2]
[343838949,1732972232939,-1000.0,0.00023448,2]
[343838950,1732972232949,-218.950657,0.00023562,2]
[343838951,1732972232959,-823.0,0.00023584,2]
[343838952,1732972232973,-1709.422248,0.000242,2]
[343838953,1732972232984,-500.0,0.00024225,2]
[343838954,1732972232994,-3957.3363686,0.00024359,2]
[343838955,1732972233007,-4255.24935886,0.00024359,2]
[343838956,1732972233018,-218.950657,0.00024433,2]
[343838957,1732972233028,-1500.0,0.0002445,2]
[343838958,1732972233039,-19815.62017261,0.000245,3]
[343838959,1732972233050,-195.24752935,0.00024557,2]
[343838960,1732972233061,-8212.58572746,0.00024607,2]
[343838961,1732972233070,-1169.27083333,0.00024657,3]
[343838962,1732972233079,-1169.27083333,0.00024657,3]
[343838963,1732972233090,-1169.27083333,0.00024657,3]
[343838964,1732972233100,-500.0,0.00024657,3]
[343838965,1732972233110,-500.0,0.00024657,3]
[343838966,1732972233120,-500.0,0.00024657,3]
[343838967,1732972233131,-500.0,0.00024657,3]
[343838968,1732972233141,-501.48719661,0.00024657,3]
[343838969,1732972233152,-500.0,0.00024657,3]
[343838970,1732972233162,-510.03811576,0.00024657,3]
[343838971,1732972233172,-341.47542715,0.00024657,3]
[343838972,1732972233182,-500.0,0.00024657,3]
[343838973,1732972233192,-500.0,0.00024657,3]
[343838974,1732972233202,-500.0,0.00024657,3]
[343838975,1732972233212,-503.28756971,0.00024657,3]
[343838976,1732972233222,-500.0,0.00024657,3]
[343838977,1732972233232,-500.0,0.00024657,3]
[343838978,1732972233242,-500.0,0.00024657,3]
[343838979,1732972233251,-500.0,0.00024657,3]
[343838980,1732972233261,-500.0,0.00024657,3]
[343838981,1732972233271,-500.0,0.00024657,3]
[343838982,1732972233281,-580.60293112,0.00024657,3]
[343838983,1732972233291,-500.0,0.00024657,3]
[343838984,1732972233300,-500.0,0.00024657,3]
[343838985,1732972233310,-500.0,0.00024657,3]
[343838986,1732972233321,-500.0,0.00024657,3]
[343838987,1732972233331,-500.0,0.00024657,3]
[343838988,1732972233343,-1001.36,0.00024657,3]
[343838989,1732972233354,-500.0,0.00024657,3]
[343838990,1732972233364,-500.0,0.00024657,3]
[343838991,1732972233374,-590.00719953,0.00024657,3]
[343838992,1732972233384,-500.0,0.00024657,3]
[343838993,1732972233395,-500.0,0.00024657,3]
[343838994,1732972233405,-500.0,0.00024657,3]
[343838995,1732972233415,-557.48,0.00024657,3]
[343838996,1732972233425,-500.0,0.00024657,3]
[343838997,1732972233436,-500.0,0.00024657,3]
[343838998,1732972233446,-500.0,0.00024657,3]
[343838999,1732972233456,-500.0,0.00024657,3]
[343839000,1732972233467,-500.0,0.00024657,3]
[343839001,1732972233476,-500.0,0.00024657,3]
[343839002,1732972233486,-500.0,0.00024657,3]
[343839003,1732972233496,-500.0,0.00024657,3]
[343839004,1732972233505,-500.0,0.00024657,3]
[343839005,1732972233515,-500.0,0.00024657,3]
[343839006,1732972233525,-500.0,0.00024657,3]
[343839007,1732972233535,-500.0,0.00024657,3]
[343839008,1732972233545,-500.0,0.00024657,3]
[343839009,1732972233555,-500.0,0.00024657,3]
[343839010,1732972233565,-500.0,0.00024657,3]
[343839011,1732972233575,-382.4000035,0.00024657,3]
[343839012,1732972233588,-500.0,0.00024657,3]
[343839013,1732972233598,-500.0,0.00024657,3]
[343839014,1732972233607,-500.0,0.00024657,3]
[343839015,1732972233618,-500.0,0.00024657,3]
[343839016,1732972233628,-500.0,0.00024657,3]
[343839017,1732972233638,-500.0,0.00024657,3]
[343839018,1732972233648,-585.19479447,0.00024657,3]
[343839019,1732972233659,-500.0,0.00024657,3]
[343839020,1732972233669,-500.0,0.00024657,3]
[343839021,1732972233679,-40.85589896,0.00024657,3]
[343839022,1732972233692,-1145.05410104,0.00024657,3]
[343839023,1732972233702,-48.24133777,0.00024657,3]
[343839075,1732972238874,-500.0,0.00022872,2]
[343839076,1732972238884,-500.0,0.00022872,2]
[343839077,1732972238893,-500.0,0.00022872,2]
[343839078,1732972238903,-500.0,0.00022872,2]
[343839079,1732972238912,-500.0,0.00022872,2]
[343839080,1732972238921,-500.0,0.00022872,2]
[343839081,1732972238930,-500.0,0.00022872,2]
[343839083,1732972238939,-500.0,0.00022872,2]
[343839084,1732972238949,-500.0,0.00022872,2]
[343839085,1732972238959,-500.0,0.00022872,2]
[343839086,1732972238967,-500.0,0.00022872,2]
[343839087,1732972238980,-500.0,0.00022872,2]
[343839088,1732972238990,-500.0,0.00022872,2]
[343839089,1732972238999,-500.0,0.00022872,2]
[343839090,1732972239008,-455.72562332,0.00022872,2]
[343839091,1732972239019,-500.0,0.00022872,2]
[343839093,1732972239028,-500.0,0.00022872,2]
[343839094,1732972239037,-500.0,0.00022872,2]
[343839095,1732972239048,-500.0,0.00022872,2]
[343839096,1732972239057,-500.0,0.00022872,2]
[343839097,1732972239066,-500.0,0.00022872,2]
[343839098,1732972239075,-551.05616379,0.00022872,2]
[343839099,1732972239085,-500.0,0.00022872,2]
[343839100,1732972239095,-500.0,0.00022872,2]
[343839101,1732972239107,-500.0,0.00022872,2]
[343839102,1732972239115,-500.0,0.00022872,2]
[343839103,1732972239125,-500.0,0.00022872,2]
[343839104,1732972239134,-500.0,0.00022872,2]
[343839105,1732972239143,-500.0,0.00022872,2]
[343839106,1732972239152,-230.94606341,0.00022872,2]
[343839108,1732972239161,-500.0,0.00022872,2]
[343839110,1732972239170,-500.0,0.00022872,2]
[343839112,1732972239179,-500.0,0.00022872,2]
[343839114,1732972239189,-500.0,0.00022872,2]
[343839116,1732972239199,-500.0,0.00022872,2]
[343839118,1732972239209,-500.0,0.00022872,2]
[343839120,1732972239218,-500.0,0.00022872,2]
[343839123,1732972239228,-500.0,0.00022872,2]
[343839125,1732972239237,-500.0,0.00022872,2]
[343839126,1732972239247,-202.3378634,0.00022872,2]
[343839128,1732972239257,-500.0,0.00022872,2]
[343839130,1732972239267,-500.0,0.00022872,2]
[343839132,1732972239276,-500.0,0.00022872,2]
[343839134,1732972239286,-500.0,0.00022872,2]
[343839136,1732972239296,-500.0,0.00022872,2]
[343839138,1732972239307,-500.0,0.00022872,2]
[343839140,1732972239316,-500.0,0.00022872,2]
[343839142,1732972239326,-500.0,0.00022872,2]
[343839144,1732972239335,-500.0,0.00022872,2]
[343839146,1732972239346,-500.0,0.00022872,2]
[343839148,1732972239356,-500.0,0.00022872,2]
[343839150,1732972239366,-500.0,0.00022872,2]
[343839152,1732972239375,-500.0,0.00022872,2]
[343839154,1732972239385,-500.0,0.00022872,2]
[343839156,1732972239394,-500.0,0.00022872,2]
[343839158,1732972239404,-500.0,0.00022872,2]
[343839160,1732972239413,-500.0,0.00022872,2]
[343839162,1732972239422,-500.0,0.00022872,2]
[343839164,1732972239432,-500.0,0.00022872,2]
[343839166,1732972239441,-500.0,0.00022872,2]
[343839168,1732972239450,-500.0,0.00022872,2]
[343839170,1732972239460,-500.0,0.00022872,2]
[343839172,1732972239469,-500.0,0.00022872,2]
[343839174,1732972239479,-631.92630851,0.00022872,2]
[343839176,1732972239488,-171.19562133,0.00022872,2]
[343839178,1732972239498,-1169.27083333,0.000245,3]
[343839180,1732972239508,-293.17515881,0.00024557,2]
[343839182,1732972239518,-451.75866223,0.00024657,3]
[343839184,1732972239528,-500.0,0.00024657,3]
[343839186,1732972239537,-500.0,0.00024657,3]
[343839188,1732972239547,-285.82551538,0.00024657,3]
[343839190,1732972239556,-922.58,0.00024657,3]
[343839192,1732972239566,-500.0,0.00024657,3]
[343839194,1732972239575,-291.856056,0.00024657,7]
[343839196,1732972239585,-291.856056,0.00024657,7]
[343839198,1732972239596,-291.856056,0.00024657,7]
[343839200,1732972239606,-500.0,0.00024657,3]
[343839202,1732972239615,-291.856056,0.00024657,7]
[343839204,1732972239624,-291.856056,0.00024657,7]
[343839206,1732972239634,-291.856056,0.00024657,7]
[343839208,1732972239644,-500.0,0.00024657,3]
[343839210,1732972239653,-639.35,0.00024657,3]
[343839212,1732972239663,-500.0,0.00024657,3]
[343839214,1732972239672,-500.0,0.00024657,3]
[343839216,1732972239682,-500.0,0.00024657,3]
[343839218,1732972239691,-500.0,0.00024657,3]
[343839220,1732972239701,-500.0,0.00024657,3]
[343839222,1732972239710,-500.0,0.00024657,3]
[343839224,1732972239719,-500.0,0.00024657,3]
[343839226,1732972239729,-500.0,0.00024657,3]
[343839228,1732972239738,-460.75313678,0.00024657,3]
[343839231,1732972239747,-500.0,0.00024657,3]
[343839233,1732972239757,-418.90066132,0.00024657,3]
[343839235,1732972239766,-440.50169333,0.00024657,3]
[343839236,1732972239775,-500.0,0.00024657,3]
[343839239,1732972239785,-500.0,0.00024657,3]
[343839240,1732972239793,-500.0,0.00024657,3]
[343839242,1732972239803,-854.68,0.00024657,3]
[343839245,1732972239813,-500.0,0.00024657,3]
[343839247,1732972239823,-500.0,0.00024657,3]
[343839249,1732972239833,-500.0,0.00024657,3]
[343839251,1732972239846,-500.0,0.00024657,3]
[343839253,1732972239855,-500.0,0.00024657,3]
[343839255,1732972239864,-500.0,0.00024657,3]
[343839257,1732972239873,-500.0,0.00024657,3]
[343839259,1732972239883,-500.0,0.00024657,3]
[343839261,1732972239892,-500.0,0.00024657,3]
[343839263,1732972239902,-500.0,0.00024657,3]
[343839264,1732972239912,-504.3933728,0.00024657,3]
[343839267,1732972239923,-500.0,0.00024657,3]
[343839269,1732972239935,-580.92,0.00024657,3]
[343839271,1732972239945,-500.0,0.00024657,3]
[343839272,1732972239954,-500.0,0.00024657,3]
[343839274,1732972239965,-500.0,0.00024657,3]
[343839278,1732972239977,-505.79056327,0.00024657,3]
[343839280,1732972239987,-500.0,0.00024657,3]
[343839282,1732972239996,-500.0,0.00024657,3]
[343839284,1732972240006,-500.0,0.00024657,3]
[343839286,1732972240016,-1003.91480103,0.00024657,5]
[343839288,1732972240025,-500.0,0.00024657,3]
[343839289,1732972240035,-500.0,0.00024657,3]
[343839292,1732972240045,-202.65848385,0.00024657,3]
[343839294,1732972240054,-502.21642557,0.00024657,3]
[343839296,1732972240064,-742.88,0.00024657,3]
[343839297,1732972240073,-502.91432481,0.00024657,3]
[343839300,1732972240083,-510.89,0.00024657,3]
[343839302,1732972240093,-300.61595275,0.00024657,3]
[343839303,1732972240103,-308.92605143,0.00024657,3]
[343839306,1732972240112,-500.0,0.00024657,3]
[343839308,1732972240121,-534.77,0.00024657,3]
[343839310,1732972240132,-500.0,0.00024657,3]
[343839312,1732972240142,-500.0,0.00024657,3]
[343839314,1732972240152,-500.0,0.00024657,3]
[343839315,1732972240161,-519.76518526,0.00024657,3]
[343839317,1732972240170,-573.04095075,0.00024657,3]
[343839319,1732972240180,-526.0071309,0.00024657,3]
[343839322,1732972240190,-500.0,0.00024657,3]
[343839323,1732972240199,-500.0,0.00024657,3]
[343839326,1732972240209,-500.0,0.00024657,3]
[343839327,1732972240219,-200.0,0.00024657,3]
[343839329,1732972240229,-604.66696486,0.00024657,3]
[343839332,1732972240238,-500.0,0.00024657,3]
[343839333,1732972240248,-500.0,0.00024657,3]
[343839335,1732972240257,-500.0,0.00024657,3]
[343839337,1732972240267,-521.51112697,0.00024657,3]
[343839339,1732972240276,-500.0,0.00024657,3]
[343839341,1732972240286,-500.0,0.00024657,3]
[343839343,1732972240295,-500.0,0.00024657,3]
[343839345,1732972240305,-500.0,0.00024657,3]
[343839347,1732972240314,-500.0,0.00024657,3]
[343839349,1732972240323,-537.5053728,0.00024657,3]
[343839351,1732972240333,-500.0,0.00024657,3]
[343839353,1732972240345,-576.16821352,0.00024657,3]
[343839355,1732972240355,-500.0,0.00024657,3]
[343839357,1732972240364,-1478.04,0.00024657,3]
[343839359,1732972240374,-500.0,0.00024657,3]
[343839361,1732972240384,-500.0,0.00024657,3]
[343839363,1732972240393,-500.0,0.00024657,3]
[343839365,1732972240402,-500.0,0.00024657,3]
[343839367,1732972240411,-500.0,0.00024657,3]
[343839369,1732972240421,-500.0,0.00024657,3]
[343839371,1732972240430,-500.0,0.00024657,3]
[343839373,1732972240440,-500.0,0.00024657,3]
[343839375,1732972240449,-514.69227699,0.00024657,3]
[343839377,1732972240459,-500.0,0.00024657,3]
[343839379,1732972240468,-500.0,0.00024657,3]
[343839381,1732972240478,-507.70273983,0.00024657,3]
[343839383,1732972240487,-500.0,0.00024657,3]
[343839385,1732972240497,-500.0,0.00024657,3]
[343839387,1732972240508,-500.0,0.00024657,3]
[343839389,1732972240517,-500.0,0.00024657,3]
[343839391,1732972240527,-500.0,0.00024657,3]
[343839393,1732972240536,-500.0,0.00024657,3]
[343839395,1732972240546,-500.0,0.00024657,3]
[343839397,1732972240555,-880.09,0.00024657,3]
[343839399,1732972240565,-500.0,0.00024657,3]
[343839401,1732972240574,-1764.3,0.00024657,3]
[343839403,1732972240584,-681.42,0.00024657,3]
[343839405,1732972240594,-500.0,0.00024657,3]
[343839407,1732972240603,-500.0,0.00024657,3]
[343839409,1732972240612,-4859.88923854,0.00024657,3]
[343839445,1732972240946,-383.69735694,0.00022872,2]
[343839447,1732972240956,-6763.81636447,0.00024657,3]
[343839699,1732972243651,-500.0,0.00022872,2]
[343839700,1732972243661,-1627.67439699,0.00024657,3]
[343839702,1732972243671,-250.34422983,0.00024657,3]
[343839704,1732972243682,-973.51577017,0.00024657,3]
[343839706,1732972243692,-176.48422983,0.00024657,3]
[343839709,1732972243711,-323.51577017,0.00024657,3]
[343839711,1732972243720,-168.8203895,0.00024657,3]
[343839712,1732972243730,-3902.04691306,0.00024657,3]
[343846409,1732972353787,-500.0,0.00024657,3]
[343846410,1732972353808,-500.0,0.00024657,3]
[343846411,1732972353830,-500.0,0.00024657,3]
[343846412,1732972353852,-500.0,0.00024657,3]
[343846413,1732972353873,-500.0,0.00024657,3]
[343846414,1732972353895,-500.0,0.00024657,3]
[343846415,1732972353916,-500.0,0.00024657,3]
[343846416,1732972353940,-500.0,0.00024657,3]
[343846417,1732972353966,-500.0,0.00024657,3]
[343846418,1732972353990,-500.0,0.00024657,3]
[343846419,1732972354017,-503.28306023,0.00024657,3]
[343846420,1732972354043,-500.0,0.00024657,3]
[343846421,1732972354066,-500.0,0.00024657,3]
[343846422,1732972354093,-500.0,0.00024657,3]
[343846423,1732972354116,-500.0,0.00024657,3]
[343846424,1732972354139,-646.48,0.00024657,3]
[343846425,1732972354164,-500.0,0.00024657,3]
[343846426,1732972354187,-173.91238353,0.00024657,3]
[343846427,1732972354212,-788.09,0.00024657,3]
[343846428,1732972354235,-500.0,0.00024657,3]
[343846429,1732972354258,-500.0,0.00024657,3]
[343846430,1732972354281,-500.0,0.00024657,3]
[343846431,1732972354304,-500.0,0.00024657,3]
[343846432,1732972354328,-500.0,0.00024657,3]
[343846433,1732972354353,-500.0,0.00024657,3]
[343846434,1732972354378,-500.0,0.00024657,3]
[343846435,1732972354403,-595.43,0.00024657,3]
[343846436,1732972354427,-500.0,0.00024657,3]
[343846437,1732972354455,-500.0,0.00024657,3]
[343846438,1732972354478,-500.0,0.00024657,3]
[343846439,1732972354502,-392.80455624,0.00024657,3]
[343846441,1732972456265,169.862578,0.00013973,2]
[343846473,1732973080139,153.0,0.00026,31]
[343846475,1732973170624,167.656066,0.00013973,2]
[343846476,1732973271521,67.9761404,0.00026,31]
[343846477,1732973271544,608.0,0.00026,31]
[343846478,1732973290747,5000.0,0.00026,60]
[343846483,1732973337011,5418.0,0.00022,30]
[343846491,1732973431892,-1053.138134,0.00018889,2]
[343846505,1732973437844,-426.60485358,0.00018889,2]
[343846507,1732973437854,-218.842774,0.00019408,2]
[343846509,1732973437868,-153.54672734,0.00019667,2]
[343846511,1732973437878,-206.97653403,0.00019767,2]
[343846540,1732973438235,-293.02346597,0.00019767,2]
[343846542,1732973438245,-195.24752935,0.000199,2]
[343846544,1732973438254,-300.0,0.00019999,2]
[343846546,1732973438264,-300.0,0.00019999,2]
[343846548,1732973438273,-1169.27083333,0.0002,2]
[343846550,1732973438283,-547.05,0.0002,3]
[343846552,1732973438292,-500.0,0.0002,2]
[343846554,1732973438301,-3966.19608858,0.0002,2]
[343846556,1732973438311,-1270.9678869,0.00020491,2]
[343846558,1732973438320,-500.0,0.00020808,2]
[343846560,1732973438330,-8411.06219377,0.00021149,2]
[343846562,1732973438346,-16488.93780623,0.00021149,2]
[343846564,1732973438355,-1005.05299455,0.00021677,2]
[343846566,1732973438364,-420.0,0.00021777,2]
[343846568,1732973438373,-500.0,0.00021903,2]
[343846570,1732973438383,-420.0,0.00021999,2]
[343846572,1732973438392,-162.0,0.00022,2]
[343846574,1732973438402,-95.89513802,0.00022925,2]
[343846712,1732973439788,-909.15785648,0.00022925,2]
[343846714,1732973439798,-162.0,0.00023014,2]
[343846716,1732973439807,-500.0,0.00023055,2]
[343846718,1732973439818,-147.99435584,0.00023056,2]
[343846723,1732973439854,-778.50432279,0.00023056,2]
[343846725,1732973439864,-405.92255524,0.000232,2]
[343846727,1732973439874,-164.212992,0.00023562,2]
[343846729,1732973439883,-587.0,0.00023712,2]
[343846731,1732973439892,-153.0,0.00023878,2]
[343846732,1732973439902,-153.0,0.00023978,2]
[343846735,1732973439912,-153.0,0.00023978,2]
[343846736,1732973439921,-633.59309593,0.00023999,2]
[343846738,1732973439930,-500.0,0.00023999,2]
[343846740,1732973439939,-581.21622927,0.00023999,2]
[343846742,1732973439948,-616.7840182,0.00023999,2]
[343846744,1732973439958,-500.0,0.00023999,2]
[343846746,1732973439967,-217.30284703,0.00023999,2]
[343846748,1732973439977,-500.0,0.00023999,2]
[343846750,1732973439986,-500.0,0.00023999,2]
[343846752,1732973439995,-500.0,0.00023999,2]
[343846754,1732973440004,-500.0,0.00023999,2]
[343846756,1732973440014,-500.0,0.00023999,2]
[343846758,1732973440023,-500.0,0.00023999,2]
[343846760,1732973440032,-500.0,0.00023999,2]
[343846762,1732973440041,-500.0,0.00023999,2]
[343846764,1732973440051,-500.0,0.00023999,2]
[343846766,1732973440062,-500.0,0.00023999,2]
[343846769,1732973440071,-500.0,0.00023999,2]
[343846771,1732973440081,-363.19263085,0.00023999,2]
[343846772,1732973440091,-500.0,0.00023999,2]
[343846775,1732973440100,-500.0,0.00023999,2]
[343846776,1732973440110,-500.0,0.00023999,2]
[343846779,1732973440120,-13519.90075686,0.00024,2]
[343846781,1732973440130,-162.0,0.00024164,2]
[343846783,1732973440139,-1005.0529945,0.00024173,2]
[343846785,1732973440151,-310.06785857,0.00024199,2]
[343846787,1732973440160,-587.0,0.00024199,2]
[343846788,1732973440169,-500.0,0.00024208,2]
[343846790,1732973440178,-500.0,0.00024573,2]
[343846793,1732973440187,-231.52951643,0.00024599,2]
[343846794,1732973440197,-162.0706615,0.00024599,2]
[343846797,1732973440207,-19611.74287016,0.000246,2]
[343847047,1732973442904,-1621.73466564,0.000246,2]
[343847072,1732973443145,-41.32576681,0.000246,2]
[343847332,1732973445765,-626.68295598,0.000246,2]
[343853338,1732973919799,167.685599,0.00013973,2]
[343853339,1732973923915,160.1,0.00026,60]
[343853340,1732973988059,160.1,0.00026,60]
[343853342,1732974500389,157.374343,0.00013973,2]
[343853344,1732974594231,803.57390971,0.00025999,60]
[343853347,1732974631955,-1169.27083333,0.0002,2]
[343853348,1732974631964,-160.114495,0.00021741,2]
[343853349,1732974631975,-732.29089792,0.000229,2]
[343853390,1732974638171,-1326.27614262,0.000229,2]
[343853391,1732974638181,-153.01314582,0.000229,2]
[343853392,1732974638191,-307.0,0.00022973,2]
[343853393,1732974638201,-500.0,0.00022973,2]
[343853394,1732974638211,-300.0,0.00022998,2]
[343853395,1732974638220,-300.0,0.00022998,2]
[343853396,1732974638231,-500.0,0.00022999,2]
[343853397,1732974638240,-373.68807009,0.00022999,2]
[343853398,1732974638250,-4725.16032289,0.00023,2]
[343853408,1732974639867,-18867.71240723,0.00023,2]
[343853409,1732974639877,-617.66578575,0.00023,2]
[343853410,1732974639888,-560664.65333422,0.00023,2]
[343853429,1732974643230,-3385.76,0.00023,2]
[343853437,1732974702262,500.0,0.00026,60]
[343853447,1732975111780,165.899952,0.00013973,2]
[343853449,1732975371256,615.3799343,0.00025999,60]
[343853451,1732975466828,498.5513032,0.00025999,60]
[343853506,1732975832123,-176.625951,0.0001985,2]
[343853507,1732975832133,-80.54708552,0.00019956,2]
[343853508,1732975832145,-125.50180348,0.00019956,2]
[343853509,1732975832155,-338.48319652,0.0002,2]
[343853544,1732975838291,-830.78763681,0.0002,2]
[343853546,1732975838302,-300.0,0.00020644,2]
[343853548,1732975838311,-300.0,0.00020644,2]
[343853551,1732975838322,-1397.0,0.00020644,2]
[343853553,1732975838332,-24900.0,0.00020645,2]
[343853554,1732975838341,-1651.6104938,0.00020994,2]
[343853556,1732975838351,-1000.0,0.00021049,2]
[343853558,1732975838360,-1356.57853319,0.0002145,2]
[343853560,1732975838370,-8580.2140748,0.00021458,2]
[343853562,1732975838379,-821.72830479,0.00021458,2]
[343853564,1732975838389,-500.0,0.00021525,2]
[343853565,1732975838399,-1138.96361033,0.00021714,2]
[343853566,1732975838408,-426.25685748,0.00021778,2]
[343853568,1732975838419,-500.0,0.00021778,2]
[343853570,1732975838428,-525.14809505,0.00021778,2]
[343853572,1732975838437,-500.0,0.00021778,2]
[343853574,1732975838446,-500.0,0.00021778,2]
[343853575,1732975838455,-500.0,0.00021778,2]
[343853576,1732975838464,-500.0,0.00021778,2]